bitfinex/quotes_BTCUSD_20250115
["timestamp","ask_amount","ask_price","bid_price","bid_amount"]
[1736973796654,0.200461,99770.0,99762.0,0.02732053]
[1736973796855,0.200461,99770.0,99762.0,0.07740994]
[1736973797387,0.00012099,99772.0,99762.0,0.07740994]
[1736973797563,0.200459,99771.0,99762.0,0.07740994]
[1736973797780,0.200459,99771.0,99763.0,0.03573099]
[1736973797984,0.00012099,99772.0,99763.0,0.05008941]
[1736973797985,0.200468,99767.0,99763.0,0.05008941]
[1736973798233,0.10422692,99766.0,99764.0,0.00202417]
[1736973798446,0.200471,99765.0,99763.0,0.04711358]
[1736973798737,0.200471,99765.0,99764.0,0.04711358]
[1736973799098,0.200473,99764.0,99756.0,0.1799]
[1736973799293,0.200461,99770.0,99761.0,0.1]
[1736973799717,0.009,99762.0,99761.0,0.1]
[1736973800313,0.1,99765.0,99761.0,0.1825]
[1736973801116,0.1,99765.0,99762.0,0.00032075]
[1736973801337,0.1,99765.0,99762.0,0.04748075]
[1736973801607,0.1,99765.0,99762.0,0.08378537]
[1736973801744,0.201473,99764.0,99762.0,0.08378537]
[1736973802147,0.1,99765.0,99764.0,0.1]
[1736973802355,0.1,99765.0,99764.0,0.14747069]
[1736973802713,0.109,99765.0,99764.0,0.14747069]
[1736973802924,0.21322692,99765.0,99764.0,0.04747069]
[1736973803123,0.20422692,99765.0,99764.0,0.04716]
[1736973803533,0.21322692,99765.0,99764.0,0.04816]
[1736973803945,0.21722692,99765.0,99764.0,0.04816]
[1736973804782,0.20822692,99765.0,99764.0,0.04716]
[1736973804986,0.4334872,99765.0,99764.0,0.12966]
[1736973805194,0.4374872,99765.0,99764.0,0.03440502]
[1736973805374,0.6299582,99765.0,99764.0,0.03440502]
[1736973805573,0.300471,99765.0,99764.0,0.03540502]
[1736973805833,0.300471,99765.0,99764.0,0.03740502]
[1736973806062,0.300471,99765.0,99764.0,0.03440502]
[1736973806269,0.40469792,99765.0,99764.0,0.03540502]
[1736973806448,0.40569792,99765.0,99764.0,0.03540502]
[1736973806667,0.40569792,99765.0,99764.0,0.13540502]
[1736973806818,0.40569792,99765.0,99764.0,0.14894552]
[1736973807029,0.40569792,99765.0,99764.0,0.14794552]
[1736973807238,0.40569792,99765.0,99764.0,0.15340552]
[1736973807849,0.40469792,99765.0,99764.0,0.15340552]
[1736973808278,0.40469792,99765.0,99764.0,0.14286502]
[1736973808481,0.40469792,99765.0,99764.0,0.03986502]
[1736973808852,0.40569792,99765.0,99764.0,0.04486502]
[1736973809326,0.40569792,99765.0,99764.0,0.04386502]
[1736973809545,0.20522692,99765.0,99764.0,0.04386502]
[1736973809671,0.20622692,99765.0,99764.0,0.05825152]
[1736973809879,0.40669792,99765.0,99764.0,0.04386502]
[1736973810254,0.20622692,99765.0,99764.0,0.04386502]
[1736973811025,0.40669792,99765.0,99764.0,0.00946]
[1736973812198,0.40569792,99765.0,99764.0,0.00546]
[1736973812404,0.40569792,99765.0,99764.0,0.00946]
[1736973812609,0.40569792,99765.0,99764.0,0.00546]
[1736973812766,0.40569792,99765.0,99764.0,0.00646]
[1736973812967,0.40669792,99765.0,99764.0,0.01046]
[1736973813199,0.40669792,99765.0,99764.0,0.00946]
[1736973813459,0.40669792,99765.0,99764.0,0.01046]
[1736973814040,0.40669792,99765.0,99764.0,0.00946]
[1736973814041,0.73646996,99765.0,99764.0,0.00946]
[1736973814242,0.73446996,99765.0,99755.0,0.1]
[1736973814469,0.200475,99763.0,99756.0,0.10422692]
[1736973814627,0.10422692,99762.0,99756.0,0.10422692]
[1736973815447,0.200479,99761.0,99756.0,0.10422692]
[1736973815656,0.30470592,99761.0,99756.0,0.10422692]
[1736973816253,0.30470592,99761.0,99756.0,0.0501]
[1736973816469,0.50518592,99761.0,99756.0,0.0501]
[1736973816668,0.200483,99759.0,99756.0,0.0501]
[1736973816838,0.200487,99757.0,99756.0,0.0501]
[1736973817038,0.30471392,99757.0,99756.0,0.0501]
[1736973818156,0.30471392,99757.0,99756.0,0.15432692]
[1736973818564,0.2323936,99761.0,99760.0,9.3160882]
[1736973818762,0.2233936,99763.0,99760.0,9.3661882]
[1736973819571,0.18946786,99765.0,99760.0,9.3661882]
[1736973819744,0.009,99761.0,99760.0,9.3661882]
[1736973819952,0.200478,99762.0,99760.0,9.47041512]
[1736973820894,0.10422692,99761.0,99760.0,9.47041512]
[1736973821489,0.10422692,99761.0,99760.0,9.3661882]
[1736973821905,0.11322692,99761.0,99760.0,9.3661882]
[1736973822143,0.13622692,99761.0,99760.0,9.3661882]
[1736973822349,0.28622692,99761.0,99760.0,9.3661882]
[1736973822957,0.29022692,99761.0,99760.0,9.3661882]
[1736973823163,0.61144069,99761.0,99760.0,9.3661882]
[1736973823368,0.60744069,99761.0,99760.0,9.3661882]
[1736973823576,0.61644069,99761.0,99760.0,9.3661882]
[1736973823748,0.61644069,99761.0,99760.0,9.3671882]
[1736973824737,0.60744069,99761.0,99760.0,9.3671882]
[1736973824945,0.60744069,99761.0,99760.0,9.3661882]
[1736973825156,0.60744069,99761.0,99760.0,9.3671882]
[1736973825332,0.60744069,99761.0,99760.0,9.3661882]
[1736973828568,0.63859164,99761.0,99760.0,9.3661882]
[1736973828759,0.60744069,99761.0,99760.0,9.3661882]
[1736973829666,0.60744069,99761.0,99760.0,9.3260922]
[1736973829869,0.63858894,99761.0,99760.0,9.2058042]
[1736973830072,0.63858894,99761.0,99760.0,9.1657082]
[1736973830285,0.63858894,99761.0,99760.0,8.61431491]
[1736973830497,0.60744069,99761.0,99760.0,8.61431491]
[1736973830915,0.87611413,99761.0,99760.0,8.59426691]
[1736973831110,0.87611413,99761.0,99760.0,8.57417891]
[1736973831322,0.87611413,99761.0,99760.0,8.53408291]
[1736973831828,0.61444069,99761.0,99760.0,8.53408291]
[1736973832274,0.60944069,99761.0,99760.0,8.53408291]
[1736973832445,0.61444069,99761.0,99760.0,8.53408291]
[1736973832586,0.60944069,99761.0,99760.0,8.53408291]
[1736973832795,0.60744069,99761.0,99760.0,8.53408291]
[1736973832990,0.61244069,99761.0,99760.0,8.53408291]
[1736973833247,0.60944069,99761.0,99760.0,8.53431356]
[1736973833854,0.60944069,99761.0,99760.0,8.58451377]
[1736973834387,0.60744069,99761.0,99760.0,8.53441377]
[1736973834796,0.61344069,99761.0,99760.0,8.53441377]
[1736973834938,0.60944069,99761.0,99760.0,8.53441377]
[1736973835139,0.60744069,99761.0,99760.0,8.53441377]
[1736973835438,0.61344069,99761.0,99760.0,8.53441377]
[1736973835637,0.60944069,99761.0,99760.0,8.53441377]
[1736973835882,0.61444069,99761.0,99760.0,8.53441377]
[1736973836114,0.60744069,99761.0,99760.0,8.58451377]
[1736973836322,0.60844069,99761.0,99760.0,8.58451377]
[1736973836469,0.83630204,99761.0,99760.0,8.53441377]
[1736973837298,0.61244069,99761.0,99760.0,8.53441377]
[1736973837559,0.61144069,99761.0,99760.0,8.53441377]
[1736973837797,0.60744069,99761.0,99760.0,8.53441377]
[1736973837981,0.60944069,99761.0,99760.0,8.53441377]
[1736973838196,0.58644069,99761.0,99760.0,8.58451377]
[1736973838407,0.58544069,99761.0,99760.0,8.58451377]
[1736973838632,0.61144069,99761.0,99760.0,8.58451377]
[1736973838837,0.60744069,99761.0,99760.0,8.58451377]
[1736973839260,0.78755668,99761.0,99760.0,8.58451377]
[1736973839445,0.78655668,99761.0,99760.0,8.58451377]
[1736973839678,0.79455668,99761.0,99760.0,8.58451377]
[1736973839873,0.79455668,99761.0,99760.0,8.57451377]
[1736973840118,0.61544069,99761.0,99760.0,8.57451377]
[1736973840728,0.69404069,99761.0,99760.0,8.46336179]
[1736973840924,0.70040069,99761.0,99760.0,8.42003541]
[1736973841153,0.70040069,99761.0,99760.0,8.28974341]
[1736973841595,0.69240069,99761.0,99760.0,8.28974341]
[1736973841766,0.69240069,99761.0,99760.0,8.29074341]
[1736973841971,0.72348679,99761.0,99760.0,8.15031655]
[1736973842120,0.72348679,99761.0,99760.0,8.08917255]
[1736973842323,0.72848679,99761.0,99760.0,8.08917255]
[1736973842744,0.69340069,99761.0,99760.0,8.08917255]
[1736973842925,0.69840069,99761.0,99760.0,8.04907655]
[1736973843129,0.69340069,99761.0,99760.0,7.98893255]
[1736973843799,0.69240069,99761.0,99760.0,7.98893255]
[1736973844003,0.69440069,99761.0,99760.0,7.94883655]
[1736973844217,0.69440069,99761.0,99760.0,7.92878855]
[1736973844437,0.69240069,99761.0,99760.0,7.90874055]
[1736973844637,0.69840069,99761.0,99760.0,7.90874055]
[1736973844872,0.69340069,99761.0,99760.0,7.90874055]
[1736973845096,0.61980069,99761.0,99760.0,7.90874055]
[1736973845296,0.61880069,99761.0,99760.0,7.90874055]
[1736973845448,0.61380069,99761.0,99760.0,7.90874055]
[1736973845797,0.62180069,99761.0,99760.0,7.90874055]
[1736973846188,0.59244069,99761.0,99760.0,7.51157807]
[1736973846379,0.59244069,99761.0,99760.0,7.40735115]
[1736973846583,0.58644069,99761.0,99760.0,7.45745115]
[1736973846969,0.60744069,99761.0,99760.0,7.45745115]
[1736973847162,0.60844069,99761.0,99760.0,7.45745115]
[1736973847476,0.60744069,99761.0,99760.0,7.45830645]
[1736973847699,0.60923683,99761.0,99760.0,7.45830645]
[1736973847900,0.27902306,99761.0,99760.0,7.45830645]
[1736973848100,0.28402306,99761.0,99760.0,7.45830645]
[1736973848315,0.27902306,99761.0,99760.0,7.45830645]
[1736973848526,0.27902306,99761.0,99760.0,7.45930645]
[1736973848937,0.27902306,99761.0,99760.0,7.45830645]
[1736973849201,0.27902306,99761.0,99760.0,7.45930645]
[1736973849721,0.41335944,99761.0,99760.0,7.45830645]
[1736973849922,0.41335944,99761.0,99760.0,7.46030645]
[1736973850127,0.41335944,99761.0,99760.0,7.54463337]
[1736973850536,0.27902306,99761.0,99760.0,7.54463337]
[1736973850733,0.27902306,99761.0,99760.0,7.44040645]
[1736973851161,0.27902306,99761.0,99760.0,7.43840645]
[1736973851406,0.27902306,99761.0,99760.0,7.43940645]
[1736973853501,0.41335944,99761.0,99760.0,7.43940645]
[1736973853894,0.15913252,99761.0,99760.0,7.56190645]
[1736973854091,0.13613252,99761.0,99760.0,7.66613337]
[1736973854307,0.13613252,99761.0,99760.0,7.78521276]
[1736973854308,0.00179614,99761.0,99760.0,7.78521276]
[1736973854720,0.00179614,99761.0,99760.0,7.88521276]
[1736973855292,0.00179614,99761.0,99760.0,7.88421276]
[1736973855488,0.01079614,99761.0,99760.0,7.88421276]
[1736973855704,0.00179614,99761.0,99760.0,7.88421276]
[1736973856115,0.00779614,99761.0,99760.0,7.88421276]
[1736973856328,0.00979614,99761.0,99760.0,7.88421276]
[1736973856525,0.00179614,99765.0,99764.0,0.1]
[1736973856730,0.00179614,99765.0,99764.0,0.48452692]
[1736973857263,0.00179614,99765.0,99764.0,0.58875384]
[1736973857508,0.08962323,99790.0,99789.0,0.281]
[1736973857730,0.08962323,99790.0,99789.0,0.38666]
[1736973857961,0.13443484,99793.0,99792.0,0.2]
[1736973858200,0.200352,99825.0,99796.0,0.1]
[1736973858412,0.00179508,99826.0,99805.0,0.2]
[1736973858621,0.00194641,99806.0,99805.0,0.2]
[1736973858875,0.00194641,99806.0,99805.0,0.2501]
[1736973859242,0.00194641,99806.0,99805.0,0.26934268]
[1736973859480,0.00194641,99806.0,99805.0,0.29627695]
[1736973860060,0.00179508,99826.0,99825.0,0.2]
[1736973860267,0.00179508,99826.0,99825.0,0.2501]
[1736973861817,0.00479508,99826.0,99825.0,0.2501]
[1736973862403,0.00479508,99826.0,99825.0,0.25646]
[1736973862621,0.00179508,99826.0,99825.0,0.282106]
[1736973863099,0.00379508,99826.0,99825.0,0.282106]
[1736973863318,0.00379508,99826.0,99825.0,0.30176052]
[1736973863521,0.00179508,99826.0,99825.0,0.29540052]
[1736973863735,0.00179508,99826.0,99825.0,0.30176052]
[1736973863965,0.00679508,99826.0,99825.0,0.30176052]
[1736973864397,0.00579508,99826.0,99825.0,0.30176052]
[1736973864597,0.00679508,99826.0,99825.0,0.30176052]
[1736973865031,0.00679508,99826.0,99825.0,0.29540052]
[1736973865319,0.00679508,99826.0,99825.0,0.30176052]
[1736973865732,0.00279508,99826.0,99825.0,0.06975452]
[1736973865928,0.00279508,99826.0,99825.0,0.2501]
[1736973866192,0.00679508,99826.0,99825.0,0.2501]
[1736973866851,0.00679508,99826.0,99825.0,0.247]
[1736973868067,0.00679508,99826.0,99825.0,0.047]
[1736973869078,0.00579508,99826.0,99825.0,0.047]
[1736973869390,0.129022,99826.0,99825.0,0.047]
[1736973869599,0.139022,99826.0,99825.0,0.048]
[1736973870038,0.138022,99826.0,99825.0,0.048]
[1736973870315,0.14072148,99826.0,99825.0,0.048]
[1736973870689,0.29072148,99826.0,99825.0,0.048]
[1736973871267,0.27872148,99826.0,99825.0,0.047]
[1736973872026,0.27872148,99826.0,99825.0,0.048]
[1736973872180,0.36132148,99826.0,99825.0,0.047]
[1736973872588,0.36232148,99826.0,99825.0,0.047]
[1736973872793,0.36132148,99826.0,99825.0,0.047]
[1736973873195,0.36232148,99826.0,99825.0,0.051]
[1736973874431,0.36232148,99826.0,99825.0,0.047]
[1736973874432,0.36132148,99826.0,99825.0,0.047]
[1736973874664,0.36232148,99826.0,99825.0,0.052]
[1736973875638,0.27972148,99826.0,99825.0,0.052]
[1736973875929,0.25672148,99826.0,99825.0,0.052]
[1736973876135,0.10672148,99826.0,99825.0,0.15622692]
[1736973876343,0.10672148,99826.0,99825.0,0.25622692]
[1736973876344,0.00249456,99826.0,99825.0,0.25622692]
[1736973877428,0.00449456,99826.0,99825.0,0.25057887]
[1736973877633,0.00349456,99826.0,99825.0,0.24557887]
[1736973878020,0.01149456,99826.0,99825.0,0.24657887]
[1736973878636,0.01149456,99826.0,99825.0,0.34657887]
[1736973881571,0.02416035,99826.0,99825.0,0.34657887]
[1736973882198,0.02416035,99826.0,99825.0,0.34743367]
[1736973883570,0.02416035,99826.0,99825.0,0.24320675]
[1736973884843,0.02395947,99826.0,99825.0,0.24320675]
[1736973886133,0.22430747,99826.0,99825.0,0.14320675]
[1736973886335,0.223334,99833.0,99830.0,7.16314368]
[1736973886556,0.223334,99833.0,99830.0,7.0713467]
[1736973886557,0.47756492,99831.0,99830.0,7.0713467]
[1736973886944,0.47756492,99831.0,99830.0,7.02504183]
[1736973887232,0.47756492,99831.0,99830.0,6.95433085]
[1736973887459,0.47756492,99831.0,99830.0,6.70911482]
[1736973887626,0.58542727,99831.0,99830.0,6.52950325]
[1736973887827,0.58542727,99831.0,99830.0,6.52850325]
[1736973888114,0.58542727,99831.0,99830.0,6.48843525]
[1736973888269,0.6164513,99831.0,99830.0,6.39701483]
[1736973888481,0.58542727,99831.0,99830.0,6.39701483]
[1736973889215,0.61646333,99831.0,99830.0,6.39801483]
[1736973889637,0.61646333,99831.0,99830.0,6.39701483]
[1736973889990,0.61746333,99831.0,99830.0,6.39701483]
[1736973890355,0.62046333,99831.0,99830.0,6.39701483]
[1736973890679,0.61646333,99831.0,99830.0,6.37698083]
[1736973890887,0.62046333,99831.0,99830.0,6.37698083]
[1736973892108,0.62246333,99831.0,99830.0,6.37698083]
[1736973892587,0.59610098,99831.0,99830.0,6.37698083]
[1736973892797,0.59166274,99831.0,99830.0,6.37698083]
[1736973893045,0.59166274,99831.0,99830.0,6.41832083]
[1736973893215,0.58466274,99831.0,99830.0,6.41832083]
[1736973893419,0.90506274,99831.0,99830.0,6.41832083]
[1736973893620,0.87870274,99831.0,99830.0,6.41832083]
[1736973893827,0.62975979,99831.0,99830.0,6.41832083]
[1736973894036,0.62875979,99831.0,99830.0,6.41832083]
[1736973894233,0.65175979,99831.0,99830.0,6.42132083]
[1736973894540,0.79643439,99831.0,99830.0,6.41832083]
[1736973894852,0.82043439,99831.0,99830.0,6.42432083]
[1736973895060,0.79975979,99831.0,99830.0,6.41832083]
[1736973895845,0.79975979,99831.0,99830.0,6.42032083]
[1736973896042,0.00179487,99831.0,99830.0,6.62454775]
[1736973896454,0.00179487,99831.0,99830.0,6.62754775]
[1736973896649,0.00179487,99831.0,99830.0,6.62554775]
[1736973896899,0.01383927,99831.0,99830.0,6.62554775]
[1736973897099,0.01583927,99831.0,99830.0,6.62254775]
[1736973897379,0.01383927,99831.0,99830.0,6.51832083]
[1736973897596,0.01683927,99831.0,99830.0,6.51932083]
[1736973897780,0.02483927,99831.0,99830.0,6.51932083]
[1736973899277,0.30206619,99831.0,99830.0,6.41932083]
[1736973899470,0.30206619,99831.0,99830.0,6.22346927]
[1736973899680,0.33695093,99831.0,99830.0,6.22346927]
[1736973899900,0.33695093,99831.0,99830.0,6.10712482]
[1736973899901,0.30588522,99831.0,99830.0,6.10712482]
[1736973900144,0.33395058,99831.0,99830.0,6.06413762]
[1736973900343,0.36772865,99831.0,99830.0,5.82514615]
[1736973900537,0.4281986,99831.0,99830.0,5.22046636]
[1736973900718,0.4281986,99831.0,99830.0,5.22446636]
[1736973900899,0.4281986,99831.0,99830.0,5.09121273]
[1736973901100,0.72709867,99831.0,99830.0,2.72572486]
[1736973901353,0.72709867,99831.0,99830.0,0.24317909]
[1736973901354,0.72073867,99831.0,99830.0,0.24317909]
[1736973901540,0.15,99825.0,99762.0,0.0811]
[1736973901745,0.20046,99771.0,99769.0,0.01280111]
[1736973901959,0.10422692,99770.0,99769.0,0.01280111]
[1736973902159,0.15,99794.0,99778.0,0.1]
[1736973902413,0.10422692,99793.0,99780.0,0.1]
[1736973902547,0.10422692,99793.0,99781.0,0.02]
[1736973902935,0.200425,99788.0,99781.0,0.02]
[1736973903130,0.200428,99786.0,99781.0,0.06134]
[1736973903381,0.10422692,99785.0,99781.0,0.06134]
[1736973903828,0.08936059,99796.0,99785.0,0.1]
[1736973904002,0.002,99793.0,99787.0,0.1]
[1736973904210,0.007,99788.0,99787.0,0.14134]
[1736973904455,0.10422692,99792.0,99787.0,0.14134]
[1736973904624,0.86436,99785.0,99782.0,0.1811]
[1736973905174,0.86436,99785.0,99783.0,0.01811]
[1736973905574,0.86636,99785.0,99783.0,0.01811]
[1736973905731,0.86636,99785.0,99784.0,0.1454]
[1736973905938,0.86036,99785.0,99784.0,0.1454]
[1736973906139,0.73226,99785.0,99784.0,0.1454]
[1736973906347,0.73426,99785.0,99784.0,0.169861]
[1736973906548,0.60616,99785.0,99784.0,0.17086312]
[1736973906747,0.48306,99785.0,99784.0,0.21997979]
[1736973907225,0.47806,99785.0,99784.0,0.21997979]
[1736973907543,0.48006,99785.0,99784.0,0.21997979]
[1736973907928,0.47806,99785.0,99784.0,0.21997979]
[1736973908336,0.47806,99785.0,99784.0,0.32420671]
[1736973908547,0.20764736,99785.0,99784.0,0.65620671]
[1736973908727,0.20764736,99785.0,99784.0,0.52880671]
[1736973908728,0.04824736,99785.0,99784.0,0.52880671]
[1736973909137,0.04824736,99785.0,99784.0,0.62880671]
[1736973909531,0.04824736,99785.0,99784.0,0.42880671]
[1736973909737,0.04824736,99785.0,99784.0,0.05011879]
[1736973909938,0.04824736,99785.0,99784.0,0.45577965]
[1736973910207,0.04824736,99785.0,99784.0,0.26070571]
[1736973910501,0.003,99785.0,99784.0,0.15847879]
[1736973910711,0.001,99785.0,99784.0,0.211948]
[1736973911137,0.001,99785.0,99784.0,0.31817492]
[1736973911359,0.001,99785.0,99784.0,0.51717294]
[1736973911695,0.001,99785.0,99784.0,0.31717294]
[1736973911954,0.001,99785.0,99784.0,0.51717294]
[1736973912368,0.001,99785.0,99784.0,0.69017294]
[1736973912568,0.0016,99833.0,99822.0,0.1]
[1736973912816,0.0016,99833.0,99823.0,0.01]
[1736973913234,0.0016,99833.0,99823.0,0.06011879]
[1736973914397,0.00779487,99831.0,99828.0,0.1]
[1736973914733,0.00779487,99831.0,99828.0,0.15011879]
[1736973915700,0.00979487,99831.0,99828.0,0.15011879]
[1736973916111,0.11259487,99831.0,99828.0,0.15011879]
[1736973916621,0.10959487,99831.0,99828.0,0.15011879]
[1736973916827,0.11759487,99831.0,99828.0,0.15011879]
[1736973917049,0.11759487,99831.0,99828.0,0.14991791]
[1736973917482,0.30456692,99830.0,99828.0,0.04991791]
[1736973918751,0.30756692,99830.0,99828.0,0.04991791]
[1736973919176,0.173,99829.0,99828.0,0.04991791]
[1736973919400,0.27722692,99829.0,99828.0,0.04991791]
[1736973920237,0.48796781,99829.0,99828.0,0.04991791]
[1736973920438,0.49096781,99829.0,99828.0,0.04991791]
[1736973920659,0.49896781,99829.0,99828.0,0.04991791]
[1736973921175,0.69457705,99829.0,99828.0,0.04991791]
[1736973921329,0.68657705,99829.0,99828.0,0.03770527]
[1736973921536,0.68457705,99829.0,99788.0,0.1]
[1736973921737,0.200415,99793.0,99789.0,0.01008551]
[1736973921942,0.200418,99791.0,99788.0,0.10015111]
[1736973922285,0.200422,99789.0,99788.0,0.10015111]
[1736973922594,0.30464892,99789.0,99788.0,0.10015111]
[1736973923031,0.30464892,99789.0,99788.0,0.00015111]
[1736973923421,0.32764892,99789.0,99788.0,0.00015111]
[1736973923627,0.47764892,99789.0,99788.0,0.00015111]
[1736973923832,0.47764892,99789.0,99788.0,0.0502699]
[1736973924444,0.47864892,99789.0,99788.0,0.0502699]
[1736973924608,0.47764892,99789.0,99788.0,0.0502699]
[1736973925013,0.48164892,99789.0,99788.0,0.0502699]
[1736973925233,0.48064892,99789.0,99788.0,0.0502699]
[1736973925419,0.47864892,99789.0,99788.0,0.0502699]
[1736973927532,0.61246041,99789.0,99788.0,0.0502699]
[1736973928720,0.47864892,99789.0,99788.0,0.0502699]
[1736973929069,0.47864892,99789.0,99788.0,0.0511249]
[1736973930848,0.57864892,99789.0,99788.0,0.0511249]
[1736973931709,0.57764892,99789.0,99788.0,0.0511249]
[1736973931913,0.90691114,99789.0,99788.0,0.0511249]
[1736973932309,0.80691114,99789.0,99788.0,0.0511249]
[1736973932645,0.173,99788.0,99784.0,0.0008551]
[1736973932855,0.47765692,99785.0,99784.0,0.0008551]
[1736973934432,0.47865692,99785.0,99784.0,0.0008551]
[1736973934640,0.47765692,99785.0,99784.0,0.0008551]
[1736973934851,0.47765692,99785.0,99784.0,0.0485551]
[1736973935292,0.4926727,99785.0,99784.0,0.0485551]
[1736973935811,0.5690727,99785.0,99784.0,0.0485551]
[1736973936053,0.75819405,99785.0,99784.0,0.0485551]
[1736973936264,1.07859405,99785.0,99784.0,1e-07]
[1736973936463,0.454079,99761.0,99760.0,0.0008553]
[1736973936711,0.60630592,99761.0,99760.0,0.00097629]
[1736973938275,0.6723626,99761.0,99760.0,0.00097629]
[1736973938491,0.63923706,99761.0,99760.0,0.00097629]
[1736973938901,0.55018038,99761.0,99760.0,0.00097629]
[1736973944997,0.55018038,99761.0,99760.0,0.05108227]
[1736973946911,0.11910138,99761.0,99760.0,0.05644705]
[1736973947144,0.11910138,99761.0,99760.0,0.15644705]
[1736973947145,0.001,99761.0,99760.0,0.15644705]
[1736973947988,0.08905668,99777.0,99760.0,0.15744941]
[1736973948249,0.08905668,99777.0,99776.0,0.1]
[1736973948451,0.20221834,99789.0,99776.0,0.16010598]
[1736973948661,0.200424,99788.0,99780.0,0.1]
[1736973948882,0.10602326,99789.0,99780.0,0.15010598]
[1736973949536,0.00179634,99789.0,99788.0,0.1]
[1736973949715,0.00179634,99789.0,99788.0,0.15010598]
[1736973950540,0.00179634,99789.0,99788.0,0.16511658]
[1736973950749,0.00579634,99789.0,99788.0,0.16511658]
[1736973950958,0.01479634,99789.0,99788.0,0.16611658]
[1736973951316,0.01479634,99789.0,99788.0,0.1671186]
[1736973951703,0.00579634,99789.0,99788.0,0.1661186]
[1736973952127,0.00979634,99789.0,99788.0,0.1671186]
[1736973953379,0.00479634,99789.0,99788.0,0.1661186]
[1736973953570,0.00979634,99789.0,99788.0,0.1661186]
[1736973953969,0.00679634,99789.0,99788.0,0.1661186]
[1736973954165,0.00779634,99789.0,99788.0,0.1661186]
[1736973954366,0.00279634,99789.0,99788.0,0.1661186]
[1736973954621,0.00179634,99789.0,99788.0,0.1661186]
[1736973954762,0.00779634,99789.0,99788.0,0.1661186]
[1736973954977,0.00979634,99789.0,99788.0,0.1661186]
[1736973955920,0.00979634,99789.0,99788.0,0.1611186]
[1736973958025,0.00979634,99789.0,99788.0,0.55714552]
[1736973958223,0.00979634,99789.0,99788.0,0.5561435]
[1736973958459,0.38303287,99831.0,99788.0,0.5561435]
[1736973958460,0.18269487,99831.0,99827.0,0.095]
[1736973958665,0.18269487,99831.0,99828.0,0.1045]
[1736973958666,0.10659487,99831.0,99828.0,0.1045]
[1736973959085,0.10659487,99831.0,99828.0,0.15460598]
[1736973959705,0.10674595,99831.0,99828.0,0.15460598]
[1736973960558,0.200342,99829.0,99828.0,0.05010598]
[1736973960782,0.30456892,99829.0,99828.0,0.05010598]
[1736973961015,0.45456892,99829.0,99828.0,0.05010598]
[1736973961223,0.45456892,99829.0,99828.0,0.05110598]
[1736973961435,0.0761,99830.0,99828.0,0.05010598]
[1736973961610,0.18032692,99830.0,99829.0,0.0051106]
[1736973961844,0.10674595,99831.0,99829.0,0.05521658]
[1736973962055,0.10674595,99831.0,99830.0,0.095]
[1736973962411,0.10674595,99831.0,99830.0,0.14510598]
[1736973962621,0.10674595,99831.0,99830.0,0.16062764]
[1736973962985,0.10174595,99831.0,99830.0,0.16062764]
[1736973963951,0.11074595,99831.0,99830.0,0.16162764]
[1736973964181,0.11074595,99831.0,99830.0,0.16162923]
[1736973964399,0.11774595,99831.0,99830.0,0.16062764]
[1736973964729,0.10374595,99831.0,99830.0,0.16162924]
[1736973964988,0.10674595,99831.0,99830.0,0.36196924]
[1736973965186,0.10774595,99831.0,99830.0,0.36096764]
[1736973965731,0.10774595,99831.0,99830.0,0.16062764]
[1736973965935,0.10774595,99831.0,99830.0,0.16698764]
[1736973966468,0.10354145,99831.0,99830.0,0.16698764]
[1736973966858,0.10754145,99831.0,99830.0,0.16698764]
[1736973967031,0.10354145,99831.0,99830.0,0.16698764]
[1736973967233,0.10654145,99831.0,99830.0,0.16698764]
[1736973967821,0.00494658,99831.0,99830.0,0.16698764]
[1736973968028,0.00494658,99831.0,99830.0,0.16798924]
[1736973968248,0.00494658,99831.0,99830.0,0.27221616]
[1736973968410,0.00494658,99831.0,99830.0,0.27121456]
[1736973968608,0.00494658,99831.0,99830.0,0.42121456]
[1736973968814,0.00494658,99831.0,99830.0,0.52121456]
[1736973969033,0.00494658,99831.0,99830.0,0.62121456]
[1736973969240,0.00494658,99831.0,99830.0,0.66301456]
[1736973969664,0.00194658,99831.0,99830.0,0.66301456]
[1736973969843,0.00194658,99831.0,99830.0,0.66701456]
[1736973970214,0.00194658,99831.0,99830.0,0.66301456]
[1736973970425,0.00294658,99831.0,99830.0,0.67101456]
[1736973970621,0.00294658,99831.0,99830.0,0.66601456]
[1736973970828,0.00294658,99831.0,99830.0,0.66301456]
[1736973971049,0.00294658,99831.0,99830.0,0.66701456]
[1736973971258,0.00194658,99831.0,99830.0,0.56601456]
[1736973971472,0.00194658,99831.0,99830.0,0.66601456]
[1736973971669,0.00194658,99831.0,99830.0,0.67001456]
[1736973971881,0.00194658,99831.0,99830.0,10.67001456]
[1736973972532,0.00194658,99831.0,99830.0,10.41885456]
[1736973972737,0.00194658,99831.0,99830.0,10.31462764]
[1736973972942,0.00194658,99831.0,99830.0,10.31898764]
[1736973973350,0.00194658,99831.0,99830.0,10.32098764]
[1736973973550,0.10354658,99831.0,99830.0,10.42121456]
[1736973973749,0.10354658,99831.0,99830.0,10.42421456]
[1736973973955,0.10354658,99831.0,99830.0,10.42721456]
[1736973974169,0.10354658,99831.0,99830.0,10.42421456]
[1736973974504,0.10354658,99831.0,99830.0,10.42621456]
[1736973975086,0.10354658,99831.0,99830.0,10.31562764]
[1736973975474,0.10354658,99831.0,99830.0,10.15010598]
[1736973976498,0.10354658,99831.0,99830.0,10.14810598]
[1736973977123,0.10354658,99831.0,99830.0,10.15110598]
[1736973977546,0.10354658,99831.0,99830.0,10.14510598]
[1736973977737,0.10554658,99831.0,99830.0,10.3993329]
[1736973978053,0.10554658,99831.0,99830.0,10.50355982]
[1736973979211,0.10354658,99831.0,99830.0,10.60355982]
[1736973979612,0.10354658,99831.0,99830.0,10.60455982]
[1736973979865,0.10354658,99831.0,99830.0,10.60555982]
[1736973980087,0.10354658,99831.0,99830.0,10.50555982]
[1736973980240,0.10354658,99831.0,99830.0,10.50955982]
[1736973980809,0.10354658,99831.0,99830.0,10.50755982]
[1736973981013,0.10354658,99831.0,99830.0,10.50991982]
[1736973981397,0.10354658,99831.0,99830.0,10.4013329]
[1736973981555,0.10354658,99831.0,99830.0,10.4076929]
[1736973981981,0.10354658,99831.0,99830.0,10.4096929]
[1736973982399,0.10354658,99831.0,99830.0,10.2556929]
[1736973982793,0.11612557,99831.0,99830.0,10.4546729]
[1736973982994,0.11612557,99831.0,99830.0,10.4506729]
[1736973983532,0.11612557,99831.0,99830.0,10.4516729]
[1736973984130,0.11612557,99831.0,99830.0,10.2513329]
[1736973984531,0.30255249,99831.0,99830.0,10.05210598]
[1736973985370,0.30255249,99831.0,99830.0,10.05110598]
[1736973985570,0.35275249,99831.0,99830.0,10.05010598]
[1736973985987,0.37575249,99831.0,99830.0,10.05010598]
[1736973986367,0.35075249,99831.0,99830.0,10.05010598]
[1736973986580,0.3621735,99831.0,99830.0,9.93500598]